bitfinex-derivatives/quotes_SOLF0:USTF0_20241218
["timestamp","ask_amount","ask_price","bid_price","bid_amount"]
[1734536691982,1.5155,217.76,217.61,11.15694527]
[1734536692176,1.5155,217.76,217.62,2.36]
[1734536692681,2.297,217.73,217.68,2.2974]
[1734536692880,2.36,217.73,217.62,2.36]
[1734536693076,2.2974,217.7,217.65,2.2978]
[1734536693283,11.15694527,217.71,217.59,3.0493]
[1734536695489,2.2976,217.67,217.63,2.298]
[1734536695689,4.6576,217.67,217.63,2.298]
[1734536697191,4.6576,217.67,217.62,2.2981]
[1734536697395,2.36,217.67,217.58,18.9887331]
[1734536697995,2.36,217.67,217.58,7.83178783]
[1734536698294,2.36,217.67,217.55,11.15694527]
[1734536698491,2.2979,217.64,217.58,2.2985]
[1734536698687,2.2979,217.64,217.55,11.15694527]
[1734536699193,1.5159,217.66,217.59,2.2984]
[1734536699391,2.298,217.63,217.59,2.2984]
[1734536700389,2.298,217.63,217.57,5.51919473]
[1734536700390,1.5159,217.66,217.57,5.51919473]
[1734536700592,2.36,217.67,217.58,11.15694527]
[1734536700997,2.36,217.67,217.57,5.51919473]
[1734536701493,2.36,217.67,217.59,2.2983]
[1734536701689,2.36,217.67,217.55,11.15694527]
[1734536701993,1.527,217.66,217.55,11.15694527]
[1734536702392,1.527,217.66,217.56,5.50148901]
[1734536702592,2.298,217.63,217.59,2.2983]
[1734536703293,1.527,217.66,217.53,5.3503]
[1734536703488,2.9873,217.66,217.53,2.9903]
[1734536704289,2.2983,217.61,217.57,2.2986]
[1734536704490,4.6583,217.61,217.57,2.2986]
[1734536705589,2.36,217.61,217.53,2.9903]
[1734536705795,2.36,217.61,217.53,5.48157224]
[1734536706598,2.36,217.61,217.49,13.51694527]
[1734536707001,2.36,217.61,217.52,11.15694527]
[1734536707201,2.9873,217.66,217.56,11.15694527]
[1734536707504,2.36,217.65,217.63,2.298]
[1734536708302,2.36,217.65,217.61,2.2981]
[1734536708697,2.36,217.65,217.56,11.15694527]
[1734536709096,4.6578,217.65,217.58,2.2985]
[1734536709301,2.2978,217.65,217.56,11.15694527]
[1734536710104,6.1847,217.66,217.61,2.2981]
[1734536710299,11.15694527,217.72,217.59,11.15694527]
[1734536710499,2.36,217.69,217.59,11.15694527]
[1734536711098,2.36,217.69,217.6,2.36]
[1734536711299,2.36,217.69,217.66,2.2976]
[1734536711499,2.2972,217.71,217.66,2.2976]
[1734536711802,2.36,217.71,217.62,11.15694527]
[1734536712496,2.36,217.71,217.65,11.15694527]
[1734536712704,2.36,217.75,217.73,2.2969]
[1734536713203,2.36,217.75,217.65,13.51694527]
[1734536715899,2.36,217.75,217.71,2.2971]
[1734536717103,13.51694527,217.75,217.62,5.46060104]
[1734536717304,11.15694527,217.72,217.62,5.46060104]
[1734536717499,2.2974,217.69,217.64,2.2979]
[1734536717703,2.36,217.68,217.64,2.2979]
[1734536719508,2.36,217.68,217.61,3.1041]
[1734536719509,2.2976,217.67,217.63,2.298]
[1734536719712,2.36,217.68,217.61,1.5207]
[1734536720105,4.6576,217.68,217.63,2.2979]
[1734536721106,4.6576,217.68,217.64,2.2979]
[1734536721311,2.36,217.68,217.61,1.5207]
[1734536722511,4.6575,217.68,217.63,2.2979]
[1734536722711,2.36,217.68,217.63,2.2979]
[1734536723405,2.36,217.68,217.56,12.64134527]
[1734536723610,2.36,217.68,217.56,15.00134527]
[1734536724106,2.36,217.68,217.59,11.15694527]
[1734536724612,2.2977,217.67,217.59,11.15694527]
[1734536725506,2.36,217.68,217.59,11.15694527]
[1734536725703,2.36,217.68,217.62,2.298]
[1734536725903,2.36,217.68,217.56,15.00134527]
[1734536726106,2.36,217.68,217.56,1.4844]
[1734536726306,11.15694527,217.66,217.58,2.2985]
[1734536726503,11.15694527,217.66,217.53,11.15694527]
[1734536726504,2.2982,217.62,217.53,11.15694527]
[1734536726912,2.36,217.63,217.58,2.2985]
[1734536727109,4.658,217.63,217.58,2.2985]
[1734536727510,2.36,217.63,217.56,11.15694527]
[1734536727712,2.36,217.69,217.6,11.15694527]
[1734536728013,2.36,217.69,217.66,2.2976]
[1734536728209,11.15694527,217.76,217.63,11.15694527]
[1734536728414,2.36,217.72,217.63,11.15694527]
[1734536728608,2.36,217.72,217.68,2.2974]
[1734536729310,11.15694527,217.76,217.63,11.15694527]
[1734536729513,2.36,217.73,217.62,3.8272]
[1734536729914,2.36,217.73,217.65,2.2978]
[1734536730109,2.36,217.73,217.62,3.8272]
[1734536730312,2.2971,217.72,217.62,3.8272]
[1734536730512,2.2971,217.72,217.67,2.2975]
[1734536730914,4.6565,217.77,217.65,11.15694527]
[1734536731115,2.2965,217.77,217.73,2.2969]
[1734536731313,4.6565,217.77,217.73,2.2969]
[1734536731516,4.6565,217.77,217.65,11.15694527]
[1734536731918,2.2967,217.76,217.68,2.2974]
[1734536732114,2.2967,217.76,217.65,11.15694527]
[1734536732309,2.36,217.77,217.65,11.15694527]
[1734536733016,4.6565,217.78,217.73,2.2969]
[1734536733710,2.36,217.78,217.73,2.2969]
[1734536733911,11.15694527,217.77,217.71,2.2972]
[1734536734419,2.36,217.78,217.72,2.297]
[1734536734620,2.36,217.78,217.67,2.36]
[1734536735018,2.2966,217.76,217.67,2.36]
[1734536735617,2.36,217.78,217.71,2.2971]
[1734536735818,11.15694527,217.77,217.67,2.36]
[1734536736013,2.2973,217.71,217.66,2.2976]
[1734536736214,2.36,217.72,217.66,2.2976]
[1734536736816,2.2974,217.7,217.66,2.2976]
[1734536739120,2.2972,217.71,217.67,2.2976]
[1734536739313,2.36,217.73,217.62,18.27562418]
[1734536739514,2.36,217.73,217.65,11.15694527]
[1734536740114,2.36,217.73,217.62,7.11867891]
[1734536740321,2.36,217.73,217.62,18.27562418]
[1734536740820,4.657,217.73,217.68,2.2974]
[1734536741213,4.657,217.73,217.65,11.15694527]
[1734536741214,2.36,217.73,217.65,11.15694527]
[1734536741418,2.36,217.73,217.71,2.2971]
[1734536741620,2.36,217.73,217.62,7.11867891]
[1734536742021,2.2975,217.69,217.64,2.2978]
[1734536742412,2.36,217.68,217.56,11.15694527]
[1734536742617,2.36,217.67,217.54,2.36]
[1734536742818,2.36,217.67,217.53,11.15694527]
[1734536743020,2.2984,217.6,217.55,2.2988]
[1734536743224,2.36,217.62,217.55,2.2988]
[1734536743423,2.36,217.62,217.52,4.6328]
[1734536743920,2.36,217.63,217.53,11.15694527]
[1734536744319,2.2981,217.62,217.57,2.2986]
[1734536744520,2.36,217.63,217.53,11.15694527]
[1734536744922,2.36,217.63,217.59,2.2983]
[1734536745117,2.36,217.63,217.56,11.15694527]
[1734536746023,2.36,217.63,217.6,2.2982]
[1734536746721,2.36,217.63,217.61,2.2981]
[1734536747017,6.1618,217.67,217.56,11.15694527]
[1734536747216,3.8642,217.67,217.56,11.15694527]
[1734536747420,2.2977,217.66,217.6,2.2982]
[1734536747617,3.8642,217.67,217.6,2.2982]
[1734536748423,2.2978,217.65,217.6,2.2982]
[1734536748826,2.2978,217.65,217.61,2.2982]
[1734536751423,2.36,217.67,217.54,2.36]
[1734536751623,11.15694527,217.65,217.53,11.15694527]
[1734536752431,2.2983,217.61,217.56,2.2987]
[1734536752727,4.6583,217.61,217.53,11.15694527]
[1734536753326,2.2985,217.59,217.52,3.1534]
[1734536753918,3.9111,217.64,217.6,2.2982]
[1734536754125,2.36,217.64,217.56,11.15694527]
[1734536754525,2.36,217.64,217.6,2.2982]
[1734536754823,2.36,217.64,217.56,11.15694527]
[1734536755027,2.36,217.64,217.6,2.2983]
[1734536755624,2.36,217.64,217.54,2.36]
[1734536755931,2.36,217.64,217.53,11.15694527]
[1734536756128,2.2983,217.6,217.56,2.2987]
[1734536756421,2.36,217.64,217.53,11.15694527]
[1734536756623,2.2985,217.59,217.54,2.2989]
[1734536756823,2.36,217.59,217.52,3.1534]
[1734536757831,2.2987,217.57,217.53,2.299]
[1734536758032,2.36,217.59,217.52,3.1534]
[1734536759525,2.2985,217.58,217.54,2.2989]
[1734536760925,4.6585,217.59,217.55,2.2988]
[1734536761630,2.36,217.59,217.53,2.299]
[1734536761832,13.51694527,217.59,217.47,11.15694527]
[1734536762033,13.51694527,217.59,217.43,3.0381]
[1734536762034,11.15694527,217.56,217.44,11.15694527]
[1734536762233,2.2993,217.51,217.43,3.0381]
[1734536762432,2.2993,217.51,217.45,5.63412879]
[1734536763042,2.2993,217.51,217.47,2.2996]
[1734536763228,2.2994,217.5,217.43,3.0381]
[1734536763632,2.36,217.52,217.45,2.2998]
[1734536763830,2.2995,217.49,217.45,2.2998]
[1734536764237,2.36,217.52,217.44,2.3]
[1734536764528,2.36,217.52,217.38,11.15694527]
[1734536764934,3.8587,217.52,217.38,11.15694527]
[1734536765433,2.2996,217.48,217.43,2.3001]
[1734536765640,2.36,217.47,217.38,11.15694527]
[1734536765937,2.36,217.47,217.41,5.56169726]
[1734536766837,2.36,217.47,217.42,2.3001]
[1734536767137,2.36,217.47,217.38,11.15694527]
[1734536767338,2.36,217.47,217.36,5.51437639]
[1734536767339,13.51694527,217.47,217.36,5.51437639]
[1734536767636,13.51694527,217.47,217.33,11.15694527]
[1734536767842,11.15694527,217.44,217.3,11.15694527]
[1734536768140,11.15694527,217.41,217.3,11.15694527]
[1734536768343,1.446,217.46,217.35,2.3009]
[1734536768344,4.6605,217.4,217.35,2.3009]
[1734536768645,2.36,217.39,217.3,11.15694527]
[1734536768842,2.36,217.39,217.32,2.3012]
[1734536769048,2.36,217.39,217.3,11.15694527]
[1734536769939,2.36,217.39,217.3,16.63210685]
[1734536770145,2.36,217.39,217.3,11.15694527]
[1734536770350,11.15694527,217.38,217.26,1.5149]
[1734536770539,2.3011,217.34,217.29,2.3016]
[1734536770747,2.36,217.33,217.24,5.5439911]
[1734536770942,2.36,217.32,217.24,5.5439911]
[1734536771142,2.36,217.32,217.26,2.3019]
[1734536771446,2.36,217.32,217.22,11.15694527]
[1734536771644,2.36,217.32,217.22,16.68049107]
[1734536771841,13.51694527,217.32,217.18,1.5881]
[1734536772445,13.51694527,217.32,217.18,6.98897402]
[1734536772650,2.3018,217.28,217.22,2.3023]
[1734536772845,2.36,217.27,217.22,2.3023]
[1734536773244,2.36,217.27,217.23,2.3022]
[1734536773744,2.36,217.27,217.18,6.98897402]
[1734536774249,2.36,217.27,217.18,5.40087402]
[1734536774545,2.36,217.27,217.13,2.36]
[1734536774546,2.302,217.25,217.19,2.3026]
[1734536774752,2.36,217.27,217.03,4.6087]
[1734536774753,11.15694527,217.23,217.03,4.6087]
[1734536774951,2.36,217.22,217.09,11.15694527]
[1734536775249,2.36,217.22,217.15,2.303]
[1734536775450,2.36,217.22,217.09,11.15694527]
[1734536775641,2.36,217.22,217.13,2.3032]
[1734536775840,2.36,217.22,217.09,11.15694527]
[1734536776848,2.36,217.22,217.11,5.45593799]
[1734536777242,11.15694527,217.2,217.06,11.15694527]
[1734536777643,11.15694527,217.2,216.95,4.6104]
[1734536777644,11.15694527,217.17,217.02,11.15694527]
[1734536777851,2.3033,217.14,217.08,2.3038]
[1734536778051,2.36,217.16,217.08,2.3038]
[1734536778247,11.15694527,217.14,217.04,5.61354415]
[1734536778445,11.15694527,217.14,217.02,11.15694527]
[1734536778941,11.15694527,217.14,216.99,11.15694527]
[1734536779142,11.15694527,217.14,217.02,11.15694527]
[1734536779353,2.36,217.13,217.02,16.58578606]
[1734536779653,11.15694527,217.04,216.97,2.305]
[1734536779844,2.36,217.03,216.88,11.15694527]
[1734536780344,11.15694527,217.01,216.88,11.15694527]
[1734536780744,11.15694527,217.01,216.92,5.5551499]
[1734536781051,2.36,217.02,216.95,11.15694527]
[1734536781243,2.3038,217.09,217.02,2.3044]
[1734536781449,2.36,217.08,216.96,1.5846]
[1734536781850,2.36,217.07,216.96,1.5846]
[1734536782050,22.59855488,217.12,216.96,1.5846]
[1734536782348,2.36,217.11,216.96,1.5846]
[1734536782853,21.06455488,217.12,216.96,1.5846]
[1734536783049,2.36,217.11,216.96,1.5846]
[1734536783449,4.6635,217.11,217.04,2.3042]
[1734536784252,2.36,217.1,217.08,2.3038]
[1734536784453,2.36,217.09,217.08,2.3038]
[1734536784653,2.36,217.09,216.99,3.0946]
[1734536785249,17.94765488,217.16,216.99,3.0946]
[1734536785753,2.36,217.15,216.99,3.0946]
[1734536785951,4.6631,217.15,216.99,3.0946]
[1734536786157,2.36,217.15,216.99,3.0946]
[1734536786455,2.3037,217.09,217.03,2.3043]
[1734536786754,2.36,217.08,216.99,3.0946]
[1734536787448,2.36,217.12,216.99,3.0946]
[1734536787754,2.36,217.12,217.02,2.3044]
[1734536787949,2.36,217.12,217.01,2.36]
[1734536788256,2.36,217.12,216.99,3.0946]
[1734536788661,17.94765488,217.08,216.96,1.5846]
[1734536788855,3.8691,217.07,216.96,1.5846]
[1734536789459,3.8691,217.07,216.99,2.3048]
[1734536790559,2.3041,217.05,216.99,2.3048]
[1734536791558,2.3042,217.05,216.98,2.3049]
[1734536791760,3.8691,217.07,216.98,2.3049]
[1734536792152,2.3043,217.04,216.98,2.3049]
[1734536792351,2.3043,217.04,216.99,2.3048]
[1734536794055,3.8691,217.07,216.92,23.50280478]
[1734536794056,1.5091,217.07,216.92,23.50280478]
[1734536794363,2.36,217.07,216.93,0.84719775]
[1734536794665,2.36,217.07,216.94,0.84719775]
[1734536794854,2.36,217.07,216.95,3.20719775]
[1734536795161,2.36,217.07,216.96,1.5667]
[1734536795362,2.36,217.07,217.04,2.3042]
[1734536795562,2.36,217.07,216.96,1.5667]
[1734536797156,4.6639,217.07,216.96,1.5667]
[1734536797364,2.36,217.07,216.96,1.5667]
[1734536797954,2.36,217.07,216.92,25.86280478]
[1734536798458,2.3042,217.05,217.0,2.3046]
[1734536798860,17.94765488,217.05,216.92,5.5551499]
[1734536799167,17.94765488,217.01,216.81,17.94765488]
[1734536799366,3.8177,217.0,216.85,1.5359]
[1734536799759,2.305,216.98,216.92,2.3055]
[1734536799968,3.8177,217.0,216.85,1.5359]
[1734536800267,2.3051,216.97,216.9,2.3057]
[1734536800567,3.8177,217.0,216.85,1.5359]
[1734536800967,2.3051,216.97,216.85,1.5359]
[1734536801168,3.8177,217.0,216.87,5.58385035]
[1734536801565,3.8177,217.0,216.92,2.3054]
[1734536802169,1.4778,217.1,216.87,5.58385035]
[1734536802470,17.94765488,217.06,216.87,5.58385035]
[1734536802660,2.3046,217.02,216.87,5.58385035]
[1734536802968,2.3046,217.02,216.96,2.305]
[1734536803267,17.94765488,217.02,216.87,5.58385035]
[1734536803669,17.94765488,217.02,216.94,2.3052]
[1734536803863,17.94765488,217.02,216.87,5.58385035]
[1734536804060,1.4705,217.01,216.87,5.58385035]
[1734536804259,17.94765488,216.94,216.82,1.458]
[1734536804468,2.3057,216.91,216.86,2.3061]
[1734536804663,2.36,216.93,216.82,1.458]
[1734536805068,2.3059,216.89,216.84,2.3064]
[1734536805269,2.36,216.88,216.84,2.3064]
[1734536805464,2.36,216.88,216.79,30.72973463]
[1734536805669,2.36,216.88,216.77,1.458]
[1734536806775,2.3064,216.85,216.79,2.3068]
[1734536808173,2.3061,216.87,216.81,2.3067]
[1734536808369,2.36,216.86,216.76,7.14966191]
[1734536808773,2.36,216.86,216.81,2.3066]
[1734536809370,2.3061,216.87,216.81,2.3066]
[1734536809574,2.36,216.86,216.82,2.3065]
[1734536809771,2.36,216.85,216.82,2.3065]
[1734536811274,2.36,216.85,216.78,2.3069]
[1734536811470,2.36,216.85,216.76,7.14966191]
[1734536811666,2.36,216.84,216.76,7.14966191]
[1734536811867,2.36,216.84,216.71,1.5554]
[1734536812269,2.3067,216.81,216.74,2.3073]
[1734536812572,2.3067,216.81,216.71,1.5554]
[1734536812763,3.9067,216.83,216.77,2.3071]
[1734536812964,1.6001,216.83,216.71,1.5554]
[1734536813165,2.36,216.84,216.73,5.41213024]
[1734536813470,9.04543947,216.85,216.76,2.3072]
[1734536813777,6.68543947,216.85,216.73,5.41213024]
[1734536814277,6.68543947,216.88,216.76,17.94765488]
[1734536814573,2.36,216.89,216.77,3.806]
[1734536815171,9.04543947,216.89,216.88,2.3059]
[1734536815373,2.36,216.93,216.8,17.94765488]
[1734536815567,2.36,216.93,216.81,2.9736]
[1734536815772,2.36,216.93,216.92,2.3055]
[1734536816074,2.36,216.93,216.81,1.4675]
[1734536816376,17.94765488,216.92,216.85,2.3062]
[1734536816672,2.36,216.92,216.81,1.4675]
[1734536816877,16.53922374,216.91,216.81,1.4675]
[1734536817175,6.70655409,216.9,216.81,1.4675]
[1734536817371,6.70655409,216.89,216.87,2.306]
[1734536817568,6.70655409,216.88,216.81,1.4675]
[1734536817773,2.36,216.92,216.81,1.4675]
[1734536818269,2.3055,216.93,216.88,2.3059]
[1734536818476,2.36,216.92,216.88,2.3059]
[1734536819073,2.36,216.92,216.81,1.4675]
[1734536819578,2.36,216.92,216.77,1.446]
[1734536819579,17.94765488,216.92,216.77,1.446]
[1734536819877,2.36,216.91,216.86,2.3061]
[1734536820380,2.36,216.91,216.89,2.3058]
[1734536820578,2.3053,216.95,216.82,2.36]
[1734536820579,2.36,216.95,216.82,2.36]
[1734536821575,5.51847852,216.97,216.82,2.36]
[1734536821774,2.36,216.96,216.92,2.3055]
[1734536822679,2.36,216.96,216.83,17.94765488]
[1734536822875,2.36,216.98,216.83,17.94765488]
[1734536823082,2.36,217.02,216.87,17.94765488]
[1734536823276,17.94765488,217.04,216.88,5.2998]
[1734536823575,2.36,217.03,216.94,2.3052]
[1734536823777,2.36,217.05,216.94,2.36]
[1734536824484,2.36,217.05,217.04,2.3042]
[1734536824875,4.4646,217.11,216.95,19.43165488]
[1734536825080,2.36,217.1,217.06,2.3039]
[1734536825780,2.36,217.1,217.08,2.3038]
[1734536825977,2.36,217.1,216.99,2.36]
[1734536826276,5.53956922,217.18,217.0,1.4632]
[1734536826477,2.36,217.17,217.14,2.3032]
[1734536826681,2.36,217.17,217.05,2.36]
[1734536826878,2.36,217.17,217.12,2.3033]
[1734536827072,2.36,217.17,217.05,2.36]
[1734536827577,1.5166,217.2,217.05,2.36]
[1734536827881,2.36,217.19,217.07,17.94765488]
[1734536828182,2.36,217.23,217.07,17.94765488]
[1734536828579,4.5616,217.28,217.16,17.94765488]
[1734536828777,2.36,217.37,217.17,2.36]
[1734536828981,2.301,217.35,217.26,2.3019]
[1734536829281,5.4297,217.36,217.22,2.36]
[1734536829676,2.36,217.4,217.22,20.30765488]
[1734536829877,2.36,217.42,217.26,17.94765488]
[1734536830082,3.0697,217.44,217.27,2.36]
[1734536830278,3.0697,217.44,217.39,2.3005]
[1734536830485,3.0697,217.44,217.3,17.94765488]
[1734536830776,3.0697,217.44,217.31,2.36]
[1734536830982,3.0697,217.44,217.32,2.36]
[1734536831378,3.0697,217.44,217.26,17.94765488]
[1734536831675,3.0697,217.44,217.27,2.4]
[1734536831985,2.3002,217.43,217.34,2.301]
[1734536832383,3.0697,217.44,217.28,2.4]
[1734536832584,5.3697,217.44,217.35,2.3009]
[1734536832776,3.0697,217.44,217.28,2.4]
[1734536833376,17.94765488,217.42,217.26,17.94765488]
[1734536833583,2.4,217.41,217.26,2.4]
[1734536833788,2.4,217.41,217.27,2.4]
[1734536833983,2.4,217.41,217.3,17.94765488]
[1734536834781,2.4,217.41,217.38,2.3006]
[1734536835186,2.4,217.41,217.29,2.4]
[1734536835388,2.3006,217.39,217.28,1.5742]
[1734536835586,2.4,217.41,217.28,1.5742]
[1734536835786,2.4,217.41,217.28,3.9742]
[1734536835979,2.3005,217.4,217.28,3.9742]
[1734536836179,2.4,217.41,217.23,5.51987538]
[1734536836489,2.3013,217.32,217.23,5.51987538]
[1734536836685,5.4384,217.31,217.19,1.5742]
[1734536836878,17.94765488,217.3,217.16,2.4]
[1734536837079,2.3019,217.27,217.16,2.4]
[1734536837282,2.4,217.26,217.14,17.94765488]
[1734536837887,2.3022,217.24,217.13,2.4]
[1734536838091,2.3022,217.24,217.12,5.39656019]
[1734536838392,2.4,217.26,217.12,5.39656019]
[1734536838693,20.34765488,217.26,217.1,2.4]
[1734536838995,2.3027,217.19,217.1,2.3035]
[1734536839188,2.4,217.18,217.02,20.34765488]
[1734536839389,3.9031,217.18,217.02,17.94765488]
[1734536839692,21.85075488,217.18,216.98,20.34765488]
[1734536839891,17.94765488,217.14,216.98,20.34765488]
[1734536840087,2.4,217.13,216.98,17.94765488]
[1734536840288,2.4,217.13,216.96,2.4]
[1734536841094,2.4,217.13,216.98,5.45663418]
[1734536842094,8.01588107,217.13,216.98,5.45663418]
[1734536842894,8.01588107,217.13,216.94,1.5951]
[1734536843092,17.94765488,217.1,216.94,1.5951]
[1734536843292,1.5558,217.09,216.94,1.5951]
[1734536843492,2.3041,217.06,216.97,2.305]
[1734536843688,2.4,217.08,216.94,7.23089947]
[1734536843987,1.5558,217.09,217.02,2.3044]
[1734536844192,2.3037,217.1,217.02,2.3044]
[1734536844398,2.4,217.09,216.96,17.94765488]
[1734536844694,4.7038,217.09,217.01,2.3045]
[1734536845292,2.304,217.07,216.99,2.3047]
[1734536845493,2.4,217.09,216.96,17.94765488]
[1734536845694,2.4,217.09,216.94,1.5951]
[1734536846586,2.4,217.08,216.94,1.5951]
[1734536846787,4.7039,217.08,217.01,2.3046]
[1734536847094,2.4,217.07,216.96,17.94765488]
[1734536847394,2.4,217.06,216.96,17.94765488]
[1734536848392,2.4,217.06,216.95,2.4]
[1734536848793,2.4,217.06,216.94,1.5951]
[1734536849598,2.4,217.05,216.94,1.5951]
[1734536849993,2.4,217.05,217.01,2.3046]
[1734536850202,2.4,217.05,216.94,1.5951]
[1734536850389,2.4,217.05,216.94,7.13211572]
[1734536851298,2.3043,217.04,216.94,7.13211572]
[1734536852502,2.4,217.05,216.95,2.3051]
[1734536852701,1.497,217.04,216.95,2.3051]
[1734536853406,2.3045,217.02,216.95,2.3051]
[1734536854295,1.497,217.04,216.88,17.94765488]
[1734536854500,19.44465488,217.04,216.88,5.66000575]
[1734536854899,2.3047,217.0,216.88,5.66000575]
[1734536855102,2.4,216.99,216.88,5.66000575]
[1734536856499,2.305,216.97,216.88,5.66000575]
[1734536856696,2.4,216.99,216.88,5.66000575]
[1734536856901,2.4,216.99,216.91,2.3056]
[1734536857102,2.4,216.99,216.88,5.66000575]
[1734536857297,2.3049,216.98,216.88,5.66000575]
[1734536857502,2.4,216.99,216.91,2.3056]
[1734536857906,2.4,216.99,216.88,5.66000575]
[1734536858107,4.7049,216.99,216.93,2.3054]
[1734536858609,19.44465488,217.04,216.88,23.60766063]
[1734536858810,2.4,217.03,216.88,26.00766063]
[1734536859508,4.7044,217.03,216.88,26.00766063]
[1734536859905,4.7044,217.03,216.97,2.3049]
[1734536860605,2.3045,217.02,216.97,2.3049]
[1734536860809,2.4,217.03,216.97,2.3049]
[1734536861211,2.3045,217.02,216.97,2.3049]
[1734536861513,2.4,217.03,216.97,2.3049]
[1734536861719,2.3049,216.98,216.88,5.66000575]
[1734536862016,2.46,216.97,216.88,5.66000575]
[1734536862219,2.46,216.96,216.88,5.66000575]
[1734536863110,19.44465488,217.04,216.88,5.66000575]
[1734536863316,2.46,217.03,216.91,17.94765488]
[1734536863517,2.46,217.03,216.98,2.3049]
[1734536863812,4.7644,217.03,216.98,2.3049]
[1734536864012,2.46,217.03,216.91,17.94765488]
[1734536864211,2.46,217.03,216.96,2.305]
[1734536864414,2.46,217.03,216.91,17.94765488]
[1734536864415,2.46,217.03,216.88,5.66000575]
[1734536864615,2.46,217.03,216.87,17.94765488]
[1734536865216,2.46,217.03,216.87,20.40765488]
[1734536865816,2.46,217.03,216.96,2.3051]
[1734536865817,2.3047,217.0,216.96,2.3051]
[1734536867419,2.3046,217.01,216.97,2.305]
[1734536867616,2.46,217.03,216.97,2.305]
[1734536867816,2.46,217.03,216.87,25.82445178]
[1734536868121,2.3046,217.01,216.97,2.305]
[1734536868318,2.46,217.03,216.87,25.82445178]
[1734536868719,4.7644,217.03,216.99,2.3048]
[1734536870024,3.8013,217.04,217.0,2.3046]
[1734536870316,2.46,217.05,216.95,17.94765488]
[1734536870520,1.5419,217.11,216.96,3.0469]
[1734536870720,4.7637,217.09,216.96,3.0469]
[1734536871122,2.46,217.09,216.96,3.0469]
[1734536872323,1.5419,217.11,216.96,3.0469]
[1734536872618,2.46,217.09,216.96,3.0469]
[1734536872825,2.46,217.09,217.02,2.3044]
[1734536873015,2.46,217.09,216.96,3.0469]
[1734536873217,2.3042,217.05,217.02,2.3045]
[1734536873426,2.46,217.04,216.96,3.0469]
[1734536874420,2.46,217.04,217.01,2.3045]
[1734536874618,2.46,217.06,216.96,3.0469]
[1734536875020,2.46,217.06,217.03,2.3043]
[1734536876128,2.46,217.06,216.96,3.0469]
[1734536876318,2.46,217.06,217.05,2.3041]
[1734536876626,2.46,217.06,216.96,3.0469]
[1734536877219,4.7641,217.06,216.96,3.0469]
[1734536877424,4.7641,217.06,217.01,2.3045]
[1734536879626,4.7641,217.06,216.96,3.0469]
[1734536879627,4.7641,217.06,217.02,2.3045]
[1734536880220,2.3043,217.04,216.99,2.3048]
[1734536880417,2.3043,217.04,216.96,3.0469]
[1734536880621,2.46,217.06,216.96,3.0469]
[1734536881129,2.46,217.08,216.97,2.46]
[1734536882027,2.46,217.08,216.96,3.0469]
[1734536882522,2.3046,217.02,216.96,3.0469]
[1734536882729,2.46,217.01,216.91,21.01965488]
[1734536882928,2.46,217.02,216.91,21.01965488]
[1734536883125,2.46,217.03,216.94,2.3052]
[1734536883429,2.46,217.04,216.91,21.01965488]
[1734536883924,1.5419,217.11,216.95,17.94765488]
[1734536884120,2.46,217.07,216.96,2.46]
[1734536884426,4.764,217.07,217.02,2.3044]
[1734536884729,4.764,217.07,216.96,2.46]